[Event "Early Titled Tuesday Blitz | February 8 2022"]
[White "Khamzin, Olzhas"]
[Black "Sharavdorj, Dashzegve"]
[WhiteFideId "13701690"]
[BlackFideId "4900340"]
[WhiteElo "2194"]
[BlackElo "2366"]
[Result "1/2-1/2"]
[Round "05"]
[TimeControl "180+1"]
[Date "2022.02.08"]
[WhiteClock "0:00:08"]
[BlackClock "0:00:23"]

1. d4 {[%clk 0:02:52]}  Nf6 {[%clk 0:02:59]} 2. Nc3 {[%clk 0:02:53]}  d5 {[%clk 0:02:58]} 3. Bg5 {[%clk 0:02:54]}  Nbd7 {[%clk 0:02:57]} 4. e3 {[%clk 0:02:54]}  g6 {[%clk 0:02:56]} 5. Qf3 {[%clk 0:02:54]}  Bg7 {[%clk 0:02:56]} 6. g4 {[%clk 0:02:55]}  c6 {[%clk 0:02:55]} 7. h4 {[%clk 0:02:55]}  e5 {[%clk 0:02:51]} 8. O-O-O {[%clk 0:02:43]}  e4 {[%clk 0:02:47]} 9. Qg2 {[%clk 0:02:39]}  h6 {[%clk 0:02:39]} 10. Bf4 {[%clk 0:02:37]}  h5 {[%clk 0:02:34]} 11. g5 {[%clk 0:02:32]}  Ng4 {[%clk 0:02:33]} 12. Bd6 {[%clk 0:02:29]}  Nb6 {[%clk 0:02:29]} 13. Ba3 {[%clk 0:02:28]}  Bf8 {[%clk 0:02:27]} 14. Bxf8 {[%clk 0:02:27]}  Kxf8 {[%clk 0:02:27]} 15. Nh3 {[%clk 0:02:24]}  Kg7 {[%clk 0:02:26]} 16. Be2 {[%clk 0:02:22]}  Qd6 {[%clk 0:02:20]} 17. Kb1 {[%clk 0:02:14]}  a5 {[%clk 0:02:20]} 18. Nf4 {[%clk 0:02:01]}  Bf5 {[%clk 0:02:19]} 19. Rhe1 {[%clk 0:01:30]}  a4 {[%clk 0:02:18]} 20. Qg3 {[%clk 0:01:17]}  Rhd8 {[%clk 0:02:15]} 21. a3 {[%clk 0:01:10]}  Qe7 {[%clk 0:02:10]} 22. Bf1 {[%clk 0:01:09]}  Nc8 {[%clk 0:02:08]} 23. f3 {[%clk 0:01:01]}  exf3 {[%clk 0:02:07]} 24. Qxf3 {[%clk 0:01:02]}  Nd6 {[%clk 0:02:03]} 25. Bd3 {[%clk 0:01:02]}  Ne4 {[%clk 0:01:55]} 26. Bxe4 {[%clk 0:01:01]}  dxe4 {[%clk 0:01:54]} 27. Nxh5+ {[%clk 0:00:56]}  Kh7 {[%clk 0:01:32]} 28. Qf4 {[%clk 0:00:48]}  Qd6 {[%clk 0:01:29]} 29. Qxd6 {[%clk 0:00:45]}  Rxd6 {[%clk 0:01:28]} 30. Ng3 {[%clk 0:00:45]}  Re6 {[%clk 0:01:20]} 31. d5 {[%clk 0:00:40]}  cxd5 {[%clk 0:01:20]} 32. Nxd5 {[%clk 0:00:41]}  Rc8 {[%clk 0:01:13]} 33. h5 {[%clk 0:00:40]}  Rc5 {[%clk 0:01:03]} 34. hxg6+ {[%clk 0:00:39]}  Bxg6 {[%clk 0:01:00]} 35. Nf4 {[%clk 0:00:36]}  Rec6 {[%clk 0:00:58]} 36. Nxg6 {[%clk 0:00:36]}  Kxg6 {[%clk 0:00:56]} 37. Nxe4 {[%clk 0:00:28]}  Rxc2 {[%clk 0:00:55]} 38. Rd6+ {[%clk 0:00:28]}  Rxd6 {[%clk 0:00:55]} 39. Kxc2 {[%clk 0:00:23]}  Rc6+ {[%clk 0:00:54]} 40. Nc3 {[%clk 0:00:23]}  b5 {[%clk 0:00:52]} 41. Kd3 {[%clk 0:00:23]}  Rc5 {[%clk 0:00:52]} 42. e4 {[%clk 0:00:21]}  Ne5+ {[%clk 0:00:51]} 43. Kc2 {[%clk 0:00:19]}  Nc4 {[%clk 0:00:51]} 44. Rg1 {[%clk 0:00:17]}  Ne3+ {[%clk 0:00:46]} 45. Kd3 {[%clk 0:00:15]}  Nc4 {[%clk 0:00:45]} 46. Kd4 {[%clk 0:00:12]}  Rc8 {[%clk 0:00:43]} 47. Nxb5 {[%clk 0:00:11]}  Nxb2 {[%clk 0:00:42]} 48. Nd6 {[%clk 0:00:11]}  Rd8 {[%clk 0:00:41]} 49. Kd5 {[%clk 0:00:11]}  Nd3 {[%clk 0:00:40]} 50. e5 {[%clk 0:00:09]}  Rb8 {[%clk 0:00:39]} 51. Rf1 {[%clk 0:00:09]}  Rb3 {[%clk 0:00:37]} 52. Rf6+ {[%clk 0:00:08]}  Kxg5 {[%clk 0:00:37]} 53. Nxf7+ {[%clk 0:00:09]}  Kg4 {[%clk 0:00:36]} 54. e6 {[%clk 0:00:10]}  Nf4+ {[%clk 0:00:35]} 55. Rxf4+ {[%clk 0:00:09]}  Kxf4 {[%clk 0:00:34]} 56. e7 {[%clk 0:00:10]}  Rd3+ {[%clk 0:00:32]} 57. Kc6 {[%clk 0:00:09]}  Re3 {[%clk 0:00:31]} 58. Kd7 {[%clk 0:00:05]}  Rxe7+ {[%clk 0:00:27]} 59. Kxe7 {[%clk 0:00:05]}  Ke4 {[%clk 0:00:25]} 60. Kd6 {[%clk 0:00:05]}  Kd4 {[%clk 0:00:25]} 61. Ne5 {[%clk 0:00:05]}  Kc3 {[%clk 0:00:25]} 62. Kc5 {[%clk 0:00:06]}  Kb3 {[%clk 0:00:25]} 63. Nc4 {[%clk 0:00:07]}  Kc3 {[%clk 0:00:24]} 64. Kb5 {[%clk 0:00:08]}  Kb3 {[%clk 0:00:24]} 65. Kc5 {[%clk 0:00:07]}  Kc3 {[%clk 0:00:24]} 66. Kd5 {[%clk 0:00:08]}  Kd3 {[%clk 0:00:23]} 67. Kc5 {[%clk 0:00:08]}  Kc3 {[%clk 0:00:23]} 1/2-1/2


[Site "https://www.chess.com"]

[Event "Early Titled Tuesday Blitz | February 8 2022"]
[White "Khoroshev, Nikita"]
[Black "Lazavik, Denis"]
[WhiteFideId "14200287"]
[BlackFideId "13515110"]
[WhiteElo "2354"]
[BlackElo "2436"]
[Result "1-0"]
[Round "05"]
[TimeControl "180+1"]
[Date "2022.02.08"]
[WhiteClock "0:00:04"]
[BlackClock "0:00:05"]

1. e4 {[%clk 0:02:54]}  c5 {[%clk 0:02:59]} 2. c3 {[%clk 0:02:49]}  Nf6 {[%clk 0:02:58]} 3. e5 {[%clk 0:02:49]}  Nd5 {[%clk 0:02:59]} 4. d4 {[%clk 0:02:50]}  cxd4 {[%clk 0:02:59]} 5. Qxd4 {[%clk 0:02:50]}  e6 {[%clk 0:02:58]} 6. Nf3 {[%clk 0:02:50]}  Nc6 {[%clk 0:02:52]} 7. Qe4 {[%clk 0:02:51]}  f5 {[%clk 0:02:53]} 8. Qe2 {[%clk 0:02:50]}  b5 {[%clk 0:02:53]} 9. g3 {[%clk 0:02:50]}  Be7 {[%clk 0:02:51]} 10. Bg2 {[%clk 0:02:49]}  O-O {[%clk 0:02:47]} 11. O-O {[%clk 0:02:45]}  a5 {[%clk 0:02:48]} 12. Rd1 {[%clk 0:02:43]}  Qc7 {[%clk 0:02:47]} 13. Bf4 {[%clk 0:02:31]}  Ba6 {[%clk 0:02:43]} 14. Nbd2 {[%clk 0:02:29]}  b4 {[%clk 0:02:35]} 15. c4 {[%clk 0:02:28]}  Nxf4 {[%clk 0:02:35]} 16. gxf4 {[%clk 0:02:28]}  a4 {[%clk 0:02:31]} 17. b3 {[%clk 0:02:24]}  a3 {[%clk 0:02:27]} 18. Nf1 {[%clk 0:02:18]}  Rae8 {[%clk 0:02:22]} 19. Qd2 {[%clk 0:01:47]}  Rd8 {[%clk 0:02:21]} 20. Qe3 {[%clk 0:01:38]}  Rfe8 {[%clk 0:02:08]} 21. c5 {[%clk 0:01:08]}  Na7 {[%clk 0:02:05]} 22. Rd6 {[%clk 0:00:57]}  Bxd6 {[%clk 0:01:34]} 23. exd6 {[%clk 0:00:58]}  Qc8 {[%clk 0:01:22]} 24. Ng3 {[%clk 0:00:53]}  Bb7 {[%clk 0:01:13]} 25. Ne5 {[%clk 0:00:44]}  Bxg2 {[%clk 0:01:13]} 26. Kxg2 {[%clk 0:00:45]}  Qb7+ {[%clk 0:01:13]} 27. Kh3 {[%clk 0:00:42]}  Nc6 {[%clk 0:01:06]} 28. Rg1 {[%clk 0:00:22]}  Nxe5 {[%clk 0:01:00]} 29. fxe5 {[%clk 0:00:20]}  f4 {[%clk 0:00:55]} 30. Qe4 {[%clk 0:00:12]}  Qxe4 {[%clk 0:00:43]} 31. Nxe4 {[%clk 0:00:13]}  Rf8 {[%clk 0:00:37]} 32. c6 {[%clk 0:00:09]}  dxc6 {[%clk 0:00:34]} 33. Nc5 {[%clk 0:00:06]}  Rfe8 {[%clk 0:00:12]} 34. d7 {[%clk 0:00:06]}  Re7 {[%clk 0:00:12]} 35. Rd1 {[%clk 0:00:07]}  Kf7 {[%clk 0:00:11]} 36. Rd6 {[%clk 0:00:08]}  g5 {[%clk 0:00:10]} 37. Kg4 {[%clk 0:00:08]}  h6 {[%clk 0:00:10]} 38. Kh5 {[%clk 0:00:07]}  Kg7 {[%clk 0:00:07]} 39. f3 {[%clk 0:00:08]}  Kf7 {[%clk 0:00:07]} 40. Kxh6 {[%clk 0:00:07]}  g4 {[%clk 0:00:07]} 41. fxg4 {[%clk 0:00:04]}  f3 {[%clk 0:00:08]} 42. Rd3 {[%clk 0:00:02]}  Rh8+ {[%clk 0:00:07]} 43. Kg5 {[%clk 0:00:02]}  Rg8+ {[%clk 0:00:07]} 44. Kf4 {[%clk 0:00:02]}  f2 {[%clk 0:00:07]} 45. Rf3 {[%clk 0:00:03]}  Kg7 {[%clk 0:00:04]} 46. Rxf2 {[%clk 0:00:03]}  Rh8 {[%clk 0:00:05]} 47. Ke3 {[%clk 0:00:04]}  Rd8 {[%clk 0:00:05]} 48. Rd2 {[%clk 0:00:03]}  Kf7 {[%clk 0:00:05]} 49. Rd6 {[%clk 0:00:04]} 1-0


[Site "https://www.chess.com"]

[Event "Early Titled Tuesday Blitz | February 8 2022"]
[White "Kiseleva, Arina"]
[Black "Iljin, Timofey"]
[WhiteFideId "4164989"]
[BlackFideId "14110180"]
[WhiteElo "1866"]
[BlackElo "2396"]
[Result "1-0"]
[Round "05"]
[TimeControl "180+1"]
[Date "2022.02.08"]
[WhiteClock "0:00:09"]
[BlackClock "0:00:25"]

1. d4 {[%clk 0:03:00]}  f5 {[%clk 0:02:35]} 2. c3 {[%clk 0:02:55]}  Nf6 {[%clk 0:02:34]} 3. g3 {[%clk 0:02:54]}  g6 {[%clk 0:02:35]} 4. Bg2 {[%clk 0:02:54]}  Bg7 {[%clk 0:02:36]} 5. Qb3 {[%clk 0:02:53]}  c6 {[%clk 0:02:33]} 6. Nh3 {[%clk 0:02:49]}  e6 {[%clk 0:02:33]} 7. Nf4 {[%clk 0:02:43]}  O-O {[%clk 0:02:33]} 8. O-O {[%clk 0:02:41]}  Qe8 {[%clk 0:02:29]} 9. Nd3 {[%clk 0:02:34]}  d6 {[%clk 0:02:28]} 10. Nd2 {[%clk 0:02:25]}  Kh8 {[%clk 0:02:27]} 11. Nc4 {[%clk 0:02:14]}  Ne4 {[%clk 0:02:08]} 12. Bxe4 {[%clk 0:02:02]}  fxe4 {[%clk 0:02:09]} 13. Nxd6 {[%clk 0:02:02]}  Qd7 {[%clk 0:02:04]} 14. Nxe4 {[%clk 0:02:02]}  Na6 {[%clk 0:02:02]} 15. Nec5 {[%clk 0:01:55]}  Nxc5 {[%clk 0:02:01]} 16. Nxc5 {[%clk 0:01:56]}  Qe7 {[%clk 0:01:58]} 17. Nd3 {[%clk 0:01:44]}  b6 {[%clk 0:01:55]} 18. Bf4 {[%clk 0:01:43]}  c5 {[%clk 0:01:54]} 19. Be5 {[%clk 0:01:27]}  Bb7 {[%clk 0:01:46]} 20. Bxg7+ {[%clk 0:01:15]}  Qxg7 {[%clk 0:01:47]} 21. dxc5 {[%clk 0:01:09]}  Rab8 {[%clk 0:01:41]} 22. Qxe6 {[%clk 0:00:48]}  Rbe8 {[%clk 0:01:38]} 23. Qg4 {[%clk 0:00:40]}  Re4 {[%clk 0:01:27]} 24. f4 {[%clk 0:00:30]}  h5 {[%clk 0:01:15]} 25. Qg5 {[%clk 0:00:24]}  Rxe2 {[%clk 0:01:12]} 26. Rf2 {[%clk 0:00:16]}  Ree8 {[%clk 0:01:07]} 27. f5 {[%clk 0:00:12]}  Be4 {[%clk 0:00:45]} 28. f6 {[%clk 0:00:06]}  Qh7 {[%clk 0:00:33]} 29. Nf4 {[%clk 0:00:06]}  Bf5 {[%clk 0:00:33]} 30. Nxh5 {[%clk 0:00:04]}  Be4 {[%clk 0:00:22]} 31. Ng7 {[%clk 0:00:04]}  Rd8 {[%clk 0:00:22]} 32. Qh4 {[%clk 0:00:04]}  Bd5 {[%clk 0:00:18]} 33. Qxh7+ {[%clk 0:00:02]}  Kxh7 {[%clk 0:00:19]} 34. Re1 {[%clk 0:00:02]}  Rf7 {[%clk 0:00:18]} 35. h4 {[%clk 0:00:02]}  Rdf8 {[%clk 0:00:18]} 36. Re7 {[%clk 0:00:02]}  Bc6 {[%clk 0:00:12]} 37. Rxf7 {[%clk 0:00:01]}  Rxf7 {[%clk 0:00:13]} 38. Ne6 {[%clk 0:00:02]}  Kg8 {[%clk 0:00:12]} 39. Nd8 {[%clk 0:00:02]}  Rc7 {[%clk 0:00:12]} 40. f7+ {[%clk 0:00:03]}  Kf8 {[%clk 0:00:12]} 41. Ne6+ {[%clk 0:00:04]}  Ke7 {[%clk 0:00:13]} 42. f8=Q+ {[%clk 0:00:04]}  Kxe6 {[%clk 0:00:13]} 43. Qf6+ {[%clk 0:00:04]}  Kd5 {[%clk 0:00:13]} 44. Qf4 {[%clk 0:00:04]}  Re7 {[%clk 0:00:13]} 45. Qd6+ {[%clk 0:00:05]}  Kc4 {[%clk 0:00:13]} 46. Qxe7 {[%clk 0:00:06]}  Bd5 {[%clk 0:00:13]} 47. Rf4+ {[%clk 0:00:06]}  Kd3 {[%clk 0:00:13]} 48. a4 {[%clk 0:00:06]}  Kc2 {[%clk 0:00:13]} 49. Rd4 {[%clk 0:00:06]}  Kb3 {[%clk 0:00:14]} 50. cxb6 {[%clk 0:00:07]}  axb6 {[%clk 0:00:14]} 51. Rxd5 {[%clk 0:00:07]}  b5 {[%clk 0:00:15]} 52. Qd6 {[%clk 0:00:07]}  Ka2 {[%clk 0:00:16]} 53. Qb6 {[%clk 0:00:07]}  b4 {[%clk 0:00:16]} 54. Qa5 {[%clk 0:00:08]}  b3 {[%clk 0:00:17]} 55. Qb4 {[%clk 0:00:08]}  g5 {[%clk 0:00:18]} 56. Rd3 {[%clk 0:00:08]}  g4 {[%clk 0:00:18]} 57. a5 {[%clk 0:00:07]}  Kxb2 {[%clk 0:00:17]} 58. a6 {[%clk 0:00:06]}  Kc2 {[%clk 0:00:18]} 59. a7 {[%clk 0:00:06]}  b2 {[%clk 0:00:19]} 60. Qxb2+ {[%clk 0:00:05]}  Kxd3 {[%clk 0:00:19]} 61. Qb4 {[%clk 0:00:05]}  Kd2 {[%clk 0:00:19]} 62. Qxg4 {[%clk 0:00:05]}  Kc2 {[%clk 0:00:20]} 63. h5 {[%clk 0:00:06]}  Kxc3 {[%clk 0:00:20]} 64. h6 {[%clk 0:00:06]}  Kc2 {[%clk 0:00:21]} 65. h7 {[%clk 0:00:07]}  Kb3 {[%clk 0:00:22]} 66. h8=Q {[%clk 0:00:07]}  Kc2 {[%clk 0:00:22]} 67. Qf8 {[%clk 0:00:07]}  Kc1 {[%clk 0:00:23]} 68. Qe6 {[%clk 0:00:07]}  Kc2 {[%clk 0:00:23]} 69. Qee7 {[%clk 0:00:08]}  Kb1 {[%clk 0:00:24]} 70. Qfd8 {[%clk 0:00:08]}  Kb2 {[%clk 0:00:25]} 71. Qec7 {[%clk 0:00:08]}  Ka2 {[%clk 0:00:26]} 72. Qdb8 {[%clk 0:00:08]}  Ka3 {[%clk 0:00:25]} 73. a8=Q# {[%clk 0:00:09]} 1-0


[Site "https://www.chess.com"]

[Event "Early Titled Tuesday Blitz | February 8 2022"]
[White "Komissarov, Alexey"]
[Black "Todorovic, Bojan"]
[WhiteFideId "4176545"]
[BlackFideId "917087"]
[WhiteElo "2216"]
[BlackElo "2266"]
[Result "0-1"]
[Round "05"]
[TimeControl "180+1"]
[Date "2022.02.08"]
[WhiteClock "0:00:03"]
[BlackClock "0:00:01"]

1. e4 {[%clk 0:03:00]}  e5 {[%clk 0:02:56]} 2. Nf3 {[%clk 0:02:59]}  Nc6 {[%clk 0:02:55]} 3. Nc3 {[%clk 0:02:58]}  Nf6 {[%clk 0:02:52]} 4. Rb1 {[%clk 0:02:58]}  Bb4 {[%clk 0:02:34]} 5. Nd5 {[%clk 0:02:56]}  O-O {[%clk 0:02:29]} 6. Nxb4 {[%clk 0:02:55]}  Nxb4 {[%clk 0:02:28]} 7. d3 {[%clk 0:02:55]}  d5 {[%clk 0:02:20]} 8. Bd2 {[%clk 0:02:52]}  a5 {[%clk 0:02:10]} 9. a3 {[%clk 0:02:37]}  Nc6 {[%clk 0:02:06]} 10. exd5 {[%clk 0:02:37]}  Qxd5 {[%clk 0:02:04]} 11. Be2 {[%clk 0:02:36]}  e4 {[%clk 0:02:00]} 12. dxe4 {[%clk 0:02:34]}  Nxe4 {[%clk 0:01:59]} 13. Be3 {[%clk 0:02:29]}  Qe6 {[%clk 0:01:41]} 14. O-O {[%clk 0:02:23]}  Rd8 {[%clk 0:01:40]} 15. Bd3 {[%clk 0:02:14]}  b6 {[%clk 0:01:17]} 16. Qe2 {[%clk 0:02:03]}  Bb7 {[%clk 0:01:14]} 17. Bxb6 {[%clk 0:01:47]}  cxb6 {[%clk 0:00:51]} 18. Qxe4 {[%clk 0:01:40]}  Qh6 {[%clk 0:00:44]} 19. Rbe1 {[%clk 0:01:14]}  Rab8 {[%clk 0:00:43]} 20. Qe3 {[%clk 0:01:13]}  Ba8 {[%clk 0:00:35]} 21. Qxh6 {[%clk 0:01:09]}  gxh6 {[%clk 0:00:36]} 22. Re3 {[%clk 0:01:07]}  b5 {[%clk 0:00:35]} 23. Rfe1 {[%clk 0:01:00]}  b4 {[%clk 0:00:35]} 24. a4 {[%clk 0:00:53]}  b3 {[%clk 0:00:25]} 25. cxb3 {[%clk 0:00:48]}  Nb4 {[%clk 0:00:18]} 26. Be4 {[%clk 0:00:37]}  Bxe4 {[%clk 0:00:18]} 27. Rxe4 {[%clk 0:00:38]}  Nd3 {[%clk 0:00:18]} 28. Rd1 {[%clk 0:00:27]}  Nc5 {[%clk 0:00:11]} 29. Rxd8+ {[%clk 0:00:27]}  Rxd8 {[%clk 0:00:11]} 30. Rd4 {[%clk 0:00:16]}  Rb8 {[%clk 0:00:08]} 31. Rd5 {[%clk 0:00:14]}  Nxb3 {[%clk 0:00:07]} 32. g4 {[%clk 0:00:14]}  Rc8 {[%clk 0:00:07]} 33. Kg2 {[%clk 0:00:11]}  Rc4 {[%clk 0:00:07]} 34. Rb5 {[%clk 0:00:09]}  Rxg4+ {[%clk 0:00:03]} 35. Kh3 {[%clk 0:00:04]}  Rb4 {[%clk 0:00:03]} 36. Rxb4 {[%clk 0:00:04]}  axb4 {[%clk 0:00:04]} 37. Ne5 {[%clk 0:00:03]}  Nc5 {[%clk 0:00:01]} 0-1


[Site "https://www.chess.com"]

[Event "Early Titled Tuesday Blitz | February 8 2022"]
[White "Kopylov, Alexander A."]
[Black "Sadhwani, Raunak"]
[WhiteFideId "4164857"]
[BlackFideId "35093487"]
[WhiteElo "2436"]
[BlackElo "2616"]
[Result "0-1"]
[Round "05"]
[TimeControl "180+1"]
[Date "2022.02.08"]
[WhiteClock "0:00:07"]
[BlackClock "0:01:43"]

1. e4 {[%clk 0:03:00]}  e5 {[%clk 0:02:57]} 2. Nf3 {[%clk 0:02:59]}  Nc6 {[%clk 0:02:58]} 3. Bc4 {[%clk 0:03:00]}  d6 {[%clk 0:02:57]} 4. d4 {[%clk 0:02:53]}  exd4 {[%clk 0:02:58]} 5. Nxd4 {[%clk 0:02:53]}  Nf6 {[%clk 0:02:57]} 6. Nc3 {[%clk 0:02:53]}  Be7 {[%clk 0:02:57]} 7. O-O {[%clk 0:02:52]}  O-O {[%clk 0:02:58]} 8. h3 {[%clk 0:02:52]}  Re8 {[%clk 0:02:57]} 9. Re1 {[%clk 0:02:52]}  Nxd4 {[%clk 0:02:58]} 10. Qxd4 {[%clk 0:02:51]}  Nd7 {[%clk 0:02:59]} 11. Nd5 {[%clk 0:02:50]}  Bh4 {[%clk 0:02:58]} 12. Bf1 {[%clk 0:01:42]}  Ne5 {[%clk 0:02:57]} 13. Qc3 {[%clk 0:01:42]}  c6 {[%clk 0:02:56]} 14. Nf4 {[%clk 0:01:40]}  Bg5 {[%clk 0:02:25]} 15. Nd3 {[%clk 0:01:20]}  Bf6 {[%clk 0:02:20]} 16. Nxe5 {[%clk 0:01:18]}  Bxe5 {[%clk 0:02:21]} 17. Qd3 {[%clk 0:01:16]}  Qf6 {[%clk 0:02:19]} 18. c3 {[%clk 0:01:16]}  d5 {[%clk 0:02:03]} 19. Bd2 {[%clk 0:01:04]}  dxe4 {[%clk 0:02:02]} 20. Qxe4 {[%clk 0:01:05]}  Bh2+ {[%clk 0:02:01]} 21. Kxh2 {[%clk 0:01:04]}  Rxe4 {[%clk 0:02:02]} 22. Rxe4 {[%clk 0:01:04]}  Bf5 {[%clk 0:01:59]} 23. Rd4 {[%clk 0:00:34]}  c5 {[%clk 0:01:57]} 24. Rd5 {[%clk 0:00:35]}  Be4 {[%clk 0:01:53]} 25. Bg5 {[%clk 0:00:23]}  Qg6 {[%clk 0:01:42]} 26. Re5 {[%clk 0:00:18]}  f6 {[%clk 0:01:42]} 27. Bc4+ {[%clk 0:00:13]}  Kh8 {[%clk 0:01:42]} 28. Re6 {[%clk 0:00:13]}  Bf5 {[%clk 0:01:42]} 29. Rd6 {[%clk 0:00:04]}  Qxg5 {[%clk 0:01:41]} 30. Rad1 {[%clk 0:00:05]}  Qf4+ {[%clk 0:01:40]} 31. Kg1 {[%clk 0:00:06]}  Qxc4 {[%clk 0:01:41]} 32. Rd8+ {[%clk 0:00:06]}  Rxd8 {[%clk 0:01:41]} 33. Rxd8+ {[%clk 0:00:06]}  Qg8 {[%clk 0:01:42]} 34. Rxg8+ {[%clk 0:00:07]}  Kxg8 {[%clk 0:01:43]} 0-1


[Site "https://www.chess.com"]

[Event "Early Titled Tuesday Blitz | February 8 2022"]
[White "Krzywda, Andrzej"]
[Black "Piesik, Piotr"]
[WhiteFideId "1114565"]
[BlackFideId "1136194"]
[WhiteElo "2098"]
[BlackElo "2232"]
[Result "0-1"]
[Round "05"]
[TimeControl "180+1"]
[Date "2022.02.08"]
[WhiteClock "0:00:01"]
[BlackClock "0:00:56"]

1. d4 {[%clk 0:03:00]}  c5 {[%clk 0:02:58]} 2. d5 {[%clk 0:03:00]}  e5 {[%clk 0:02:58]} 3. e4 {[%clk 0:02:59]}  d6 {[%clk 0:02:56]} 4. Nc3 {[%clk 0:02:57]}  Be7 {[%clk 0:02:56]} 5. Nf3 {[%clk 0:02:45]}  a6 {[%clk 0:02:55]} 6. a4 {[%clk 0:02:45]}  Bg4 {[%clk 0:02:55]} 7. Be2 {[%clk 0:02:45]}  Bxf3 {[%clk 0:02:55]} 8. Bxf3 {[%clk 0:02:46]}  Bg5 {[%clk 0:02:55]} 9. O-O {[%clk 0:02:46]}  Bxc1 {[%clk 0:02:55]} 10. Qxc1 {[%clk 0:02:45]}  Ne7 {[%clk 0:02:56]} 11. g3 {[%clk 0:02:36]}  O-O {[%clk 0:02:55]} 12. Bg2 {[%clk 0:02:36]}  Nd7 {[%clk 0:02:54]} 13. f4 {[%clk 0:02:35]}  f5 {[%clk 0:02:54]} 14. Qe3 {[%clk 0:02:32]}  exf4 {[%clk 0:02:49]} 15. Qxf4 {[%clk 0:02:28]}  Ne5 {[%clk 0:02:47]} 16. Rae1 {[%clk 0:02:20]}  h6 {[%clk 0:02:39]} 17. exf5 {[%clk 0:02:10]}  Nxf5 {[%clk 0:02:33]} 18. Bh3 {[%clk 0:02:02]}  Nd4 {[%clk 0:02:31]} 19. Qe4 {[%clk 0:01:59]}  Nef3+ {[%clk 0:02:22]} 20. Kg2 {[%clk 0:01:51]}  Nxe1+ {[%clk 0:02:21]} 21. Rxe1 {[%clk 0:01:51]}  Qf6 {[%clk 0:02:20]} 22. Nd1 {[%clk 0:01:33]}  Kh8 {[%clk 0:02:02]} 23. c3 {[%clk 0:01:31]}  Qf3+ {[%clk 0:01:54]} 24. Qxf3 {[%clk 0:01:18]}  Nxf3 {[%clk 0:01:55]} 25. Re7 {[%clk 0:01:17]}  Ng5 {[%clk 0:01:51]} 26. Bg4 {[%clk 0:01:05]}  Rf7 {[%clk 0:01:49]} 27. Rxf7 {[%clk 0:00:53]}  Nxf7 {[%clk 0:01:50]} 28. Ne3 {[%clk 0:00:53]}  g6 {[%clk 0:01:50]} 29. Nc4 {[%clk 0:00:51]}  b5 {[%clk 0:01:49]} 30. Na3 {[%clk 0:00:42]}  Rb8 {[%clk 0:01:45]} 31. axb5 {[%clk 0:00:39]}  axb5 {[%clk 0:01:45]} 32. Bd7 {[%clk 0:00:37]}  b4 {[%clk 0:01:45]} 33. Nc4 {[%clk 0:00:36]}  bxc3 {[%clk 0:01:45]} 34. bxc3 {[%clk 0:00:37]}  Rb3 {[%clk 0:01:35]} 35. Be6 {[%clk 0:00:38]}  Ne5 {[%clk 0:01:35]} 36. Nxd6 {[%clk 0:00:26]}  Rxc3 {[%clk 0:01:33]} 37. Ne4 {[%clk 0:00:25]}  Rc2+ {[%clk 0:01:32]} 38. Kf1 {[%clk 0:00:25]}  Rc4 {[%clk 0:01:25]} 39. Nd6 {[%clk 0:00:20]}  Rd4 {[%clk 0:01:24]} 40. Nb5 {[%clk 0:00:20]}  Rb4 {[%clk 0:01:20]} 41. Nc3 {[%clk 0:00:13]}  Nc4 {[%clk 0:01:17]} 42. Ke2 {[%clk 0:00:06]}  Nd6 {[%clk 0:01:16]} 43. Kd3 {[%clk 0:00:05]}  Kg7 {[%clk 0:01:14]} 44. Na2 {[%clk 0:00:02]}  Rd4+ {[%clk 0:01:14]} 45. Ke3 {[%clk 0:00:02]}  Kf6 {[%clk 0:01:13]} 46. Nc3 {[%clk 0:00:03]}  Ke5 {[%clk 0:01:13]} 47. Ne2 {[%clk 0:00:03]}  Nc4+ {[%clk 0:01:10]} 48. Kf2 {[%clk 0:00:03]}  Rd2 {[%clk 0:01:05]} 49. Ke1 {[%clk 0:00:03]}  Rb2 {[%clk 0:01:00]} 50. h4 {[%clk 0:00:03]}  g5 {[%clk 0:00:59]} 51. h5 {[%clk 0:00:02]}  Ne3 {[%clk 0:00:57]} 52. g4 {[%clk 0:00:01]}  Nxd5 {[%clk 0:00:56]} 0-1


[Site "https://www.chess.com"]

[Event "Early Titled Tuesday Blitz | February 8 2022"]
[White "Lehtosaari, Mauri"]
[Black "Tregubov, Pavel V."]
[WhiteFideId "501999"]
[BlackFideId "4115341"]
[WhiteElo "2462"]
[BlackElo "2341"]
[Result "1/2-1/2"]
[Round "05"]
[TimeControl "180+1"]
[Date "2022.02.08"]
[WhiteClock "0:00:07"]
[BlackClock "0:00:12"]

1. d4 {[%clk 0:02:57]}  Nf6 {[%clk 0:02:52]} 2. Nf3 {[%clk 0:02:57]}  c5 {[%clk 0:02:51]} 3. c3 {[%clk 0:02:56]}  b6 {[%clk 0:02:50]} 4. Bg5 {[%clk 0:02:56]}  Bb7 {[%clk 0:02:50]} 5. Nbd2 {[%clk 0:02:54]}  e6 {[%clk 0:02:45]} 6. e3 {[%clk 0:02:54]}  Be7 {[%clk 0:02:45]} 7. Bd3 {[%clk 0:02:53]}  d5 {[%clk 0:02:43]} 8. Ne5 {[%clk 0:02:48]}  O-O {[%clk 0:02:41]} 9. O-O {[%clk 0:02:47]}  Ne4 {[%clk 0:02:40]} 10. Bxe7 {[%clk 0:02:46]}  Qxe7 {[%clk 0:02:40]} 11. f4 {[%clk 0:02:36]}  f6 {[%clk 0:02:38]} 12. Nef3 {[%clk 0:02:33]}  Nd7 {[%clk 0:02:37]} 13. Qc2 {[%clk 0:02:32]}  f5 {[%clk 0:02:36]} 14. Bb5 {[%clk 0:02:28]}  Rac8 {[%clk 0:02:24]} 15. Bxd7 {[%clk 0:02:26]}  Qxd7 {[%clk 0:02:23]} 16. Ne5 {[%clk 0:02:24]}  Qe7 {[%clk 0:02:23]} 17. Ndf3 {[%clk 0:01:59]}  b5 {[%clk 0:02:15]} 18. dxc5 {[%clk 0:01:53]}  Rxc5 {[%clk 0:02:10]} 19. Qb3 {[%clk 0:01:45]}  a5 {[%clk 0:02:03]} 20. Rad1 {[%clk 0:01:43]}  Ba6 {[%clk 0:02:01]} 21. Rfe1 {[%clk 0:01:36]}  Rb8 {[%clk 0:01:56]} 22. Nd4 {[%clk 0:01:32]}  Rb6 {[%clk 0:01:44]} 23. Qa3 {[%clk 0:01:23]}  b4 {[%clk 0:01:38]} 24. cxb4 {[%clk 0:01:23]}  axb4 {[%clk 0:01:36]} 25. Qa4 {[%clk 0:01:19]}  h6 {[%clk 0:01:19]} 26. Nd7 {[%clk 0:01:04]}  Qh4 {[%clk 0:00:51]} 27. Nxb6 {[%clk 0:00:50]}  Qf2+ {[%clk 0:00:50]} 28. Kh1 {[%clk 0:00:50]}  Bd3 {[%clk 0:00:18]} 29. Qe8+ {[%clk 0:00:38]}  Kh7 {[%clk 0:00:18]} 30. Qxe6 {[%clk 0:00:36]}  Nd2 {[%clk 0:00:16]} 31. Rg1 {[%clk 0:00:14]}  Be4 {[%clk 0:00:15]} 32. Rxd2 {[%clk 0:00:13]}  Qxd2 {[%clk 0:00:15]} 33. Nb3 {[%clk 0:00:10]}  Bxg2+ {[%clk 0:00:12]} 34. Rxg2 {[%clk 0:00:06]}  Qd1+ {[%clk 0:00:12]} 35. Rg1 {[%clk 0:00:06]}  Qf3+ {[%clk 0:00:12]} 36. Rg2 {[%clk 0:00:06]}  Qf1+ {[%clk 0:00:11]} 37. Rg1 {[%clk 0:00:07]}  Qf3+ {[%clk 0:00:12]} 38. Rg2 {[%clk 0:00:07]}  Qf1+ {[%clk 0:00:12]} 39. Rg1 {[%clk 0:00:07]}  Qf3+ {[%clk 0:00:12]} 1/2-1/2


[Site "https://www.chess.com"]